bitfinex/quotes_ETHUSD_20260308
["timestamp","ask_amount","ask_price","bid_price","bid_amount"]
[1772977466266,0.001,1935.8,1935.3,2.5518763]
[1772977466858,0.001,1935.8,1935.3,3.78892769]
[1772977467022,0.001,1935.8,1935.3,1.23815139]
[1772977467223,0.001,1935.8,1935.3,2.49815139]
[1772977467423,0.001,1935.8,1935.3,3.78993614]
[1772977468966,1.28023828,1935.8,1935.3,2.55288475]
[1772977469166,1.28023828,1935.8,1935.3,0.0011]
[1772977469940,1.28023828,1935.8,1935.3,1.29288422]
[1772977470138,1.28023828,1935.8,1935.3,0.0011]
[1772977471060,1.27923828,1935.7,1935.3,0.0011]
[1772977471869,2.57170767,1935.8,1935.3,0.0011]
[1772977474769,1.29246939,1935.8,1935.3,0.0011]
[1772977474962,1.28974931,1935.7,1935.3,0.0011]
[1772977475565,1.28974931,1935.7,1935.2,0.0011]
[1772977475766,1.28974931,1935.5,1935.2,0.0011]
[1772977475970,2.58132438,1935.7,1935.2,0.0011]
[1772977477849,1.29248927,1935.8,1935.2,1.26359505]
[1772977478053,2.58223858,1935.8,1935.2,1.26359505]
[1772977480882,2.58223858,1935.8,1935.2,2.55539715]
[1772977481987,1.28974931,1935.7,1935.2,1.29294371]
[1772977482279,1.28974931,1935.7,1935.3,0.0011]
[1772977482466,1.29074931,1935.7,1935.3,0.0011]
[1772977482985,2.58231371,1935.7,1935.3,0.0011]
[1772977483164,1.29074931,1935.7,1935.3,0.0011]
[1772977483363,1.28974931,1935.6,1935.3,0.0011]
[1772977485389,0.001,1935.8,1935.4,1.26249505]
[1772977486091,1.29074931,1935.8,1935.3,0.0011]
[1772977487981,2.58226163,1935.8,1935.3,0.0011]
[1772977489515,2.58226163,1935.8,1935.3,1.26359505]
[1772977490006,1.29158917,1935.6,1935.3,0.0011]
[1772977490181,2.58133848,1935.6,1935.3,0.0011]
[1772977490712,0.001,1935.8,1935.4,1.26249505]
[1772977492294,0.001,1935.8,1935.5,1.2916559]
[1772977492691,0.001,1935.8,1935.4,2.55416524]
[1772977494092,1.29074931,1935.8,1935.4,2.55526524]
[1772977494291,0.001,1935.7,1935.4,2.55526524]
[1772977495921,0.00153886,1936.0,1935.5,1.26249505]
[1772977496522,0.00153886,1936.0,1935.6,1.29158917]
[1772977496696,1.29128817,1936.0,1935.6,1.29158917]
[1772977497230,1e-08,1936.0,1935.6,1.29158917]
[1772977497535,1.28974931,1936.3,1935.7,1.26249505]
[1772977497706,0.001,1936.4,1935.7,1.26249505]
[1772977497906,1.29074931,1936.4,1935.7,1.26249505]
[1772977498432,1.29074931,1936.4,1935.8,1.29145572]
[1772977498652,1.29074931,1936.4,1935.9,1.26249505]
[1772977499837,2.58181484,1936.4,1935.8,1.29145572]
[1772977500041,1.28974931,1936.3,1935.8,1.29145572]
[1772977500449,1.28974931,1936.1,1935.6,1.29154148]
[1772977500620,1.28974931,1936.3,1935.7,1.26249505]
[1772977502449,1.28974931,1936.3,1935.8,1.29145572]
[1772977503420,1.28974931,1936.3,1935.8,2.59272549]
[1772977504146,0.001,1936.4,1935.9,1.30126977]
[1772977504447,0.001,1936.4,1936.0,1.30126977]
[1772977504843,0.001,1936.4,1936.1,1.29125561]
[1772977505227,1.23945844,1936.8,1936.1,1.29125561]
[1772977505546,1.23945844,1936.8,1936.0,6.3386156]
[1772977505547,1.23945844,1936.8,1936.0,2.46487502]
[1772977506328,1.23945844,1936.8,1935.8,1.29141263]
[1772977506522,1.23945844,1936.6,1935.5,1.17359314]
[1772977506722,1.23945844,1936.6,1935.8,0.0011]
[1772977507026,1.23945844,1936.2,1935.8,0.0011]
[1772977510255,2.53069595,1936.2,1935.8,0.0011]
[1772977510552,1.23945844,1936.1,1935.8,0.0011]
[1772977511629,1.23945844,1936.1,1935.5,0.0011]
[1772977512833,1.23945844,1935.9,1935.5,0.0011]
[1772977513631,0.001,1936.3,1935.6,1.17359314]
[1772977514233,2.53028653,1936.8,1935.5,0.0011]
[1772977514446,2.53028653,1936.8,1935.6,1.17359314]
[1772977514751,2.53028653,1936.8,1935.8,1.17359314]
[1772977515330,1.2409973,1937.0,1935.8,1.17359314]
[1772977515525,0.00153886,1937.0,1936.2,1.17359314]
[1772977515825,0.00153886,1937.0,1936.3,1.17359314]
[1772977516545,4.84187105,1937.5,1936.3,1.17359314]
[1772977516546,1.23945844,1937.5,1936.4,1.17359314]
[1772977516747,2.52960214,1937.8,1936.6,1.17359314]
[1772977516955,1.23945844,1937.8,1936.6,1.17359314]
[1772977517331,2.52961497,1937.8,1936.6,1.17359314]
[1772977517734,0.00153886,1938.0,1936.8,1.17359314]
[1772977518037,1.29152969,1938.0,1937.0,1.17359314]
[1772977518262,0.00153886,1938.0,1937.0,1.17359314]
[1772977519068,1.2409973,1938.0,1937.2,1.17359314]
[1772977519253,1.2409973,1938.0,1937.1,1.17359314]
[1772977519458,0.00153886,1938.0,1937.1,1.17359314]
[1772977519637,1.2409973,1938.0,1937.1,1.17359314]
[1772977520578,0.00153886,1938.0,1937.1,1.17359314]
[1772977521084,0.00153886,1938.0,1937.3,1.17359314]
[1772977521290,0.001,1937.7,1937.3,1.17359314]
[1772977522562,0.00153886,1938.0,1937.2,1.17359314]
[1772977522991,0.00153886,1938.0,1937.3,2.46404892]
[1772977523301,0.00153886,1938.0,1937.4,1.17359314]
[1772977523799,1.28959042,1938.6,1937.4,1.17359314]
[1772977524010,3.88101627,1938.7,1937.4,1.17359314]
[1772977524502,1.28957179,1938.7,1937.4,1.17359314]
[1772977524709,0.92922197,1938.9,1937.4,1.17359314]
[1772977524918,0.00153886,1939.0,1938.1,1.17359314]
[1772977525064,1.23945844,1939.8,1938.3,1.17359314]
[1772977525406,3.88021695,1939.9,1938.5,1.17359314]
[1772977525558,5.11967539,1939.9,1938.5,1.17359314]
[1772977526313,1.23945844,1939.8,1938.1,1.228]
[1772977526502,0.00153886,1940.0,1938.2,1.17359314]
[1772977526676,5.14889161,1942.2,1939.0,1.17359314]
[1772977526876,1.09092996,1942.5,1940.9,1.28806223]
[1772977527075,1.23945844,1942.7,1941.0,2.81316089]
[1772977527381,1.56043115,1941.0,1940.7,1.17359314]
[1772977527585,1.29812373,1941.9,1940.7,1.17359314]
[1772977527766,1.2409973,1942.0,1940.7,1.17359314]
[1772977527965,1.23945844,1941.7,1940.1,1.17359314]
[1772977528195,2.45145844,1941.7,1940.1,1.17359314]
[1772977528361,1.23945844,1941.7,1940.1,1.17359314]
[1772977529002,2.45536857,1941.7,1940.2,1.17359314]
[1772977529202,1.23945844,1941.6,1940.2,1.17359314]
[1772977529509,0.00153886,1942.0,1940.4,1.17359314]
[1772977529677,0.00153886,1942.0,1941.2,1.17359314]
[1772977529872,1.23945844,1942.9,1941.2,1.17359314]
[1772977530269,1.28822256,1943.0,1941.0,0.00153886]
[1772977530270,1.23945844,1942.7,1941.0,0.00153886]
[1772977530571,1.23945844,1942.3,1941.0,0.00153886]
[1772977531110,1.23945844,1942.1,1941.0,0.00153886]
[1772977531294,1.127,1942.0,1941.0,0.00153886]
[1772977531499,1.23945844,1941.8,1941.0,0.00153886]
[1772977531686,2.37645844,1941.7,1941.0,0.00153886]
[1772977532337,2.39045844,1941.7,1941.0,0.00153886]
[1772977532589,1.23945844,1941.7,1941.0,0.00153886]
[1772977532790,1.159,1941.6,1941.0,0.00153886]
[1772977532994,1.28766417,1941.5,1941.0,0.00153886]
[1772977533203,2.44660818,1941.6,1941.0,0.00153886]
[1772977533366,2.44760818,1941.6,1941.0,0.00153886]
[1772977533780,1.26709954,1941.5,1940.1,2.5072045]
[1772977534096,1.26709954,1941.1,1940.0,0.00153886]
[1772977534301,1.26709954,1941.1,1940.0,1.2901868]
[1772977534498,1.26709954,1940.9,1940.0,1.29019021]
[1772977534804,1.26709954,1940.7,1939.5,1.288992]
[1772977535005,2.55540445,1940.6,1939.5,1.288992]
[1772977535209,3.72740445,1940.6,1939.5,1.288992]
[1772977535705,1.26709954,1940.8,1939.5,2.50760313]
[1772977536011,1.28806223,1940.9,1939.3,1.28912494]
[1772977536012,1.26709954,1940.5,1939.3,1.28912494]
[1772977536223,1.26709954,1940.5,1939.1,1.28922006]
[1772977536605,2.44409954,1940.4,1939.1,1.28922006]
[1772977536805,1.26709954,1940.4,1939.2,1.21861113]
[1772977537013,1.28852695,1940.2,1939.3,1.28912494]
[1772977537326,1.18,1940.2,1939.4,1.21861113]
[1772977537498,1.26709954,1940.7,1939.4,1.21861113]
[1772977537695,1.26709954,1940.7,1939.3,1.28912494]
[1772977537696,1.26709954,1940.5,1939.3,1.28912494]
[1772977538723,1.179,1940.4,1939.3,1.28912494]
[1772977539115,1.28846054,1940.3,1939.3,1.28912494]
[1772977539623,1.186,1940.2,1939.3,1.28912494]
[1772977539795,1.186,1940.2,1939.0,0.00153886]
[1772977539796,1.26709954,1940.1,1939.0,0.00153886]
[1772977540000,1.28846054,1940.3,1939.1,1.21861113]
[1772977540204,1.201,1940.2,1939.1,1.21861113]
[1772977540530,1.204,1940.1,1939.1,1.21861113]
[1772977541201,1.204,1940.1,1939.2,1.28919141]
[1772977541397,2.49259527,1940.1,1939.2,1.28919141]
[1772977542816,1.232,1940.0,1939.2,1.28919141]
[1772977543324,2.55567667,1940.2,1939.2,1.28919141]
[1772977543526,1.241,1940.1,1939.3,1.21861113]
[1772977543757,1.28837537,1940.5,1939.3,1.21861113]
[1772977543921,1.235,1940.4,1939.3,1.21861113]
[1772977544446,1.227,1940.5,1939.3,1.21861113]
[1772977544635,1.219,1940.5,1939.3,1.21861113]
[1772977544838,2.55525968,1940.8,1939.3,1.21861113]
[1772977545151,1.26709954,1940.7,1939.3,1.21861113]
[1772977545334,1.26709954,1940.5,1939.4,1.28905847]
[1772977545854,1.229,1940.4,1939.4,1.28905847]
[1772977546054,1.229,1940.4,1939.4,1.29015847]
[1772977546831,1.26709954,1940.3,1939.4,0.0011]
[1772977547056,1.246,1940.2,1939.4,0.0011]
[1772977547231,2.5553609,1940.6,1939.4,0.0011]
[1772977547437,1.25,1940.5,1939.4,0.0011]
[1772977547834,2.5553609,1940.6,1939.4,0.0011]
[1772977548025,1.257,1940.5,1939.4,0.0011]
[1772977548226,1.26709954,1940.4,1939.4,0.0011]
[1772977548855,2.53309954,1940.3,1939.4,0.0011]
[1772977549731,2.55562649,1940.2,1939.4,0.0011]
[1772977549935,1.28852695,1940.2,1939.4,0.0011]
[1772977550136,1.277,1940.1,1939.4,1.21971113]
[1772977550937,1.286,1940.0,1939.4,1.21971113]
[1772977551147,1.28850498,1940.3,1939.4,1.21971113]
[1772977551351,1.289,1940.2,1939.4,1.21971113]
[1772977551659,1.28819498,1940.7,1939.4,1.21971113]
[1772977551845,1.28832775,1940.5,1939.6,1.21861113]
[1772977552039,2.55542729,1940.5,1939.5,1.288992]
[1772977552266,1.296,1940.5,1939.6,1.21861113]
[1772977553358,1.304,1940.4,1939.5,2.50760313]
[1772977553564,1.26709954,1940.6,1939.5,2.50760313]
[1772977553769,1.306,1940.3,1939.5,2.50760313]
[1772977554071,1.28832775,1940.5,1939.5,2.50760313]
[1772977554269,1.309,1940.2,1939.5,2.50760313]
[1772977554469,1.28832775,1940.5,1939.6,1.21861113]
[1772977554671,1.311,1940.4,1939.6,1.21861113]
[1772977555967,1.311,1940.4,1939.5,1.288992]
[1772977556172,1.28846054,1940.3,1939.4,5.15706803]
[1772977556378,1.321,1940.2,1939.4,6.37567916]
[1772977556686,1.322,1940.1,1939.4,6.37567916]
[1772977557389,1.28846054,1940.3,1939.4,6.37567916]
[1772977557390,1.325,1940.0,1939.4,6.37567916]
[1772977557691,1.325,1940.0,1939.4,2.5087696]
[1772977558181,2.61372161,1940.0,1939.4,2.5087696]
[1772977558480,5.15235598,1940.9,1939.4,2.5087696]
[1772977558481,1.28860268,1941.6,1940.7,1.21861113]
[1772977558845,1.28860268,1941.6,1940.1,1.21861113]
[1772977559480,1.26709954,1941.5,1940.1,1.21861113]
[1772977559775,1.26709954,1941.3,1940.0,0.00153886]
[1772977560070,1.26709954,1941.1,1940.0,0.00153886]
[1772977560272,3.88209541,1941.0,1940.0,0.00153886]
[1772977560452,1.26709954,1940.9,1940.0,0.00153886]
[1772977560652,1.26709954,1940.7,1940.0,0.00153886]
[1772977560846,1.26709954,1940.5,1940.0,0.00153886]
[1772977561177,1.331,1940.4,1940.0,0.00153886]
[1772977561848,1.26709954,1940.5,1940.0,0.00153886]
[1772977562051,1.334,1940.4,1939.5,0.0011]
[1772977562250,1.28846054,1940.3,1939.5,0.0011]
[1772977562742,0.065536,1940.8,1939.5,1.26724526]
[1772977562943,1.22743167,1940.8,1939.5,1.26724526]
[1772977563175,1.338,1940.7,1939.5,1.26724526]
[1772977563572,1.22743167,1940.8,1939.5,1.26724526]
[1772977563772,1.34,1940.7,1939.5,1.26724526]
[1772977563973,2.5154939,1940.9,1939.5,1.26724526]
[1772977564379,1.28819498,1940.7,1939.7,1.22149363]
[1772977565364,1.345,1940.6,1939.7,1.22149363]
[1772977565961,1.28819498,1940.7,1939.7,1.22149363]
[1772977566251,5.15358795,1941.0,1939.8,1.28879265]
[1772977566252,1.28832775,1940.5,1939.8,1.28879265]
[1772977566652,1.348,1940.4,1939.8,1.28879265]
[1772977566966,1.349,1940.3,1939.8,2.51028628]
[1772977567273,1.28831067,1940.6,1939.7,2.51031895]
[1772977567478,1.35,1940.5,1939.8,1.22149363]
[1772977568197,1.351,1940.4,1939.8,1.22149363]
[1772977569254,2.63945065,1940.4,1939.8,2.51022177]
[1772977570283,2.63945065,1940.4,1939.5,0.0011]
[1772977570787,0.001,1941.6,1939.7,1.22149363]
[1772977570961,0.00143886,1941.5,1940.5,1.22149363]
[1772977571165,0.00143886,1941.5,1940.7,1.22149363]
[1772977571484,1.34743886,1941.5,1940.7,1.22149363]
[1772977571985,0.00143886,1941.4,1940.7,1.22149363]
[1772977572288,1.34943886,1941.4,1940.7,1.22149363]
[1772977572476,0.00143886,1941.4,1940.7,1.22149363]
[1772977572784,1.35043886,1941.4,1940.7,1.22149363]
[1772977572993,0.00143886,1941.3,1940.7,1.22149363]
[1772977573574,0.00143886,1941.3,1940.8,1.2881286]
[1772977573777,0.00143886,1941.3,1940.8,2.50962223]
[1772977574162,0.00143886,1941.2,1940.5,2.50980789]
[1772977574361,1.353,1941.4,1940.5,2.50980789]
[1772977574557,0.00143886,1941.3,1940.5,1.28831426]
[1772977574755,0.00143886,1941.3,1940.3,1.28846054]
[1772977574959,1.27591918,1941.2,1940.0,1.29019746]
[1772977575185,1.27448032,1941.2,1940.0,1.29019746]
[1772977575390,0.00143886,1941.1,1940.1,1.22149363]
[1772977575690,1.28799587,1941.0,1940.2,2.51002058]
[1772977575881,1.28943473,1941.0,1940.2,2.51002058]
[1772977576192,1.33643886,1940.9,1940.3,1.22149363]
[1772977576379,1.335,1940.9,1940.3,1.22149363]
[1772977576980,0.00143886,1940.8,1940.3,1.22149363]
[1772977577697,1.28956746,1940.8,1940.3,2.5099258]
[1772977577887,0.00143886,1940.8,1940.3,2.5099258]
[1772977578402,0.00143886,1940.7,1940.3,2.5099258]
[1772977578612,1.28796874,1941.1,1940.4,1.22149363]
[1772977578775,1.345,1941.0,1940.4,1.22149363]
[1772977578974,1.346,1940.9,1940.4,1.22149363]
[1772977579373,0.00143886,1940.8,1940.4,1.22149363]
[1772977579587,6.4251388,1941.5,1940.5,1.28832775]
[1772977579588,5.1509351,1941.4,1940.5,1.28832775]
[1772977579896,5.15237396,1941.4,1940.5,1.28832775]
[1772977580074,1.349,1941.3,1940.5,1.28832775]
[1772977580275,1.349,1941.2,1940.5,1.28832775]
[1772977580472,1.349,1941.2,1938.1,5.15944248]
[1772977580473,1.34001632,1940.4,1938.1,5.15944248]
[1772977580804,1.27448032,1940.2,1938.4,1.22149363]
[1772977581105,1.27448032,1940.2,1938.2,5.36797247]
[1772977581106,0.00153886,1940.0,1938.6,1.22149363]
[1772977581475,0.00153886,1940.0,1938.8,1.22149363]
[1772977581677,2.56467897,1940.0,1938.9,5.36797247]
[1772977581902,1.293,1939.9,1938.9,5.36797247]
[1772977582202,1.295,1939.8,1939.0,5.36797247]
[1772977582413,1.295,1939.8,1938.9,5.36797247]
[1772977583605,5.15463917,1940.3,1938.9,5.36797247]
[1772977583606,0.001,1941.6,1939.4,1.22149363]
[1772977583903,1.28859785,1941.6,1940.4,1.22149363]
[1772977584071,1.28859785,1941.6,1940.6,1.22149363]
[1772977584698,1.313,1941.5,1940.7,5.36643361]
[1772977584899,1.316,1941.5,1940.7,6.58792724]
[1772977585107,1.316,1941.5,1940.8,5.36643361]
[1772977585979,1.28771083,1941.5,1940.8,6.65456117]
[1772977586213,1.28771083,1941.5,1940.9,5.36643361]
[1772977586512,1.28771083,1941.5,1940.8,6.65455237]
[1772977586722,1.28771083,1941.5,1940.9,5.36643361]
[1772977587011,1.28863253,1941.6,1940.9,5.36643361]
[1772977587208,1.28863253,1941.6,1941.0,5.36643361]
[1772977587413,2.61863253,1941.6,1940.9,5.36643361]
[1772977587595,1.28863253,1941.6,1940.8,5.36643361]
[1772977587796,1.332,1941.5,1940.4,2.50987331]
[1772977587990,1.2877305,1941.4,1940.4,2.50987331]
[1772977589918,1.2877305,1941.4,1940.4,1.22149363]
[1772977590082,1.27448032,1941.2,1940.0,0.00153886]
[1772977590287,1.27448032,1941.2,1940.0,1.29019409]
[1772977590502,1.27448032,1941.2,1940.1,1.22149363]
[1772977590778,1.344,1941.1,1940.1,1.22149363]
[1772977591395,1.348,1941.0,1940.1,1.22149363]
[1772977592817,2.63603636,1941.0,1940.2,1.28852695]
[1772977593724,2.64203636,1941.0,1940.2,1.28852695]
[1772977593919,2.64203636,1941.0,1940.1,2.51004042]
[1772977594214,1.28803636,1941.0,1940.1,2.51004042]
[1772977594418,2.64403636,1941.0,1940.1,2.51004042]
[1772977595012,1.54555753,1940.9,1940.0,0.00153886]
[1772977597420,1.54555753,1940.7,1940.0,0.00153886]
[1772977598923,1.54555753,1940.7,1940.0,0.00263886]
[1772977599915,2.83381889,1940.6,1940.0,0.00263886]
[1772977601920,1.367,1940.5,1940.0,0.00263886]
[1772977602625,2.83395167,1940.4,1940.0,0.00263886]
[1772977603000,1.54555753,1940.3,1939.4,1.28900516]
[1772977603200,1.54555753,1940.3,1939.3,1.28908217]
[1772977604528,0.00153886,1941.0,1939.7,1.60083271]
[1772977604826,5.1488111,1942.2,1940.5,1.60083271]
[1772977604827,2.83449151,1942.0,1940.5,1.60083271]
[1772977605397,0.00253886,1941.9,1940.5,1.60083271]
[1772977605896,0.00253886,1941.9,1940.9,1.60083271]
[1772977606092,0.00253886,1941.8,1940.9,1.60083271]
[1772977606297,0.00253886,1941.9,1940.9,1.60083271]
[1772977606496,0.00253886,1941.9,1941.0,2.88882858]
[1772977606907,0.00253886,1941.8,1941.1,1.60083271]
[1772977607106,0.00253886,1941.9,1941.1,1.60083271]
[1772977608829,0.00253886,1941.8,1941.2,1.28786317]
[1772977609718,0.00253886,1941.7,1941.2,1.28786317]
[1772977609920,1.362,1941.9,1940.8,6.75334186]
[1772977610116,1.54809639,1941.8,1940.9,1.28806223]
[1772977610638,0.00253886,1941.7,1940.9,1.28806223]
[1772977610933,1.2900704,1941.7,1940.9,1.28806223]
[1772977611265,0.00253886,1941.6,1940.5,1.60083271]
[1772977611436,0.00253886,1941.6,1940.6,1.28826136]
[1772977612308,1.54809639,1941.5,1940.6,1.28826136]
[1772977612507,1.54555753,1941.5,1940.6,1.28826136]
[1772977612705,1.54555753,1941.5,1940.7,0.0011]
[1772977612902,1.29026936,1941.4,1940.7,0.0011]
[1772977613131,1.366,1941.3,1940.7,0.0011]
[1772977613429,1.36853886,1941.3,1940.7,0.0011]
[1772977613821,1.54809639,1941.2,1940.7,0.0011]
[1772977614019,2.91155753,1941.1,1940.5,0.0011]
[1772977614235,1.54555753,1941.0,1940.5,0.0011]
[1772977615316,1.28806223,1940.9,1940.5,0.0011]
[1772977615627,1.28759785,1941.6,1940.5,1.60193271]
[1772977615821,0.00253886,1941.1,1940.5,1.60193271]
[1772977616422,1.28759785,1941.6,1940.5,1.60193271]
[1772977616622,1.37053886,1941.5,1940.5,1.60193271]
[1772977617411,1.37053886,1941.5,1940.6,1.28826136]
[1772977617611,2.65820743,1941.5,1940.6,1.28826136]
[1772977618323,0.00253886,1941.4,1940.7,1.60083271]
[1772977618527,1.28753829,1941.7,1940.7,1.60083271]
[1772977618825,0.00253886,1941.6,1940.7,1.60083271]
[1772977619820,0.00253886,1941.6,1940.8,1.2881286]
[1772977620147,0.00253886,1941.5,1940.8,1.2881286]
[1772977620342,0.00253886,1941.6,1940.8,1.2881286]
[1772977621447,6.50986237,1941.8,1940.8,2.88896131]
[1772977621448,0.00253886,1941.5,1940.8,2.88896131]
[1772977621638,1.362,1941.7,1940.8,2.88896131]
[1772977621947,1.36453886,1941.7,1940.8,2.88896131]
[1772977622758,1.28759785,1941.6,1940.8,2.88896131]
[1772977623648,1.58239728,1941.5,1940.8,1.2881286]
[1772977623945,1.58239728,1941.5,1940.6,1.28826136]
[1772977624163,0.00253886,1941.4,1940.6,1.28826136]
[1772977624347,1.61491304,1941.4,1940.6,1.28826136]
[1772977624551,1.6174519,1941.3,1940.5,0.0011]
[1772977624750,1.61491304,1941.1,1940.5,0.0011]
[1772977625067,1.364,1941.0,1940.5,0.0011]
[1772977626127,1.28786317,1941.2,1940.5,0.0011]
[1772977626128,1.61491304,1941.5,1940.5,0.0011]
[1772977626333,0.00253886,1941.4,1940.5,1.4919601]
[1772977626639,0.00253886,1941.6,1940.5,1.4919601]
[1772977626822,0.00253886,1941.6,1940.6,2.77912146]
[1772977627452,0.00253886,1941.6,1940.7,1.4908601]
[1772977627654,1.36353886,1941.6,1940.7,1.4908601]
[1772977628339,1.362,1941.6,1940.7,1.4908601]
[1772977629052,1.362,1941.5,1940.8,1.2881286]
[1772977631465,2.64969768,1941.5,1940.8,1.2881286]
[1772977631951,0.00253886,1941.4,1940.8,1.2881286]
[1772977632128,1.6174519,1941.4,1940.8,1.2881286]
[1772977632323,1.36553886,1941.3,1940.8,1.2881286]
[1772977632528,1.363,1941.4,1940.8,1.2881286]
[1772977633557,1.363,1941.4,1940.6,5.15361442]
[1772977633771,0.00253886,1941.3,1940.6,5.15361442]
[1772977634144,0.00253886,1941.2,1940.6,6.64447452]
[1772977634348,1.28766978,1941.5,1940.6,6.64447452]
[1772977634349,1.364,1941.5,1940.6,6.64447452]
[1772977634527,0.00253886,1941.4,1940.6,6.64447452]
[1772977635954,0.00253886,1941.3,1940.6,6.64447452]
[1772977636128,0.00253886,1941.4,1940.6,6.64447452]
[1772977636738,0.00253886,1941.3,1940.6,6.64447452]
[1772977636944,1.6174519,1941.4,1940.6,5.15361442]
[1772977637823,2.90523036,1941.4,1940.6,0.0011]
[1772977638028,0.00253886,1941.3,1940.6,0.0011]
[1772977638327,1.6174519,1941.3,1940.6,0.0011]
[1772977638529,1.61491304,1941.1,1940.4,0.0011]
[1772977639038,1.363,1941.0,1940.4,0.0011]
[1772977639356,1.6174519,1940.9,1940.4,0.0011]
[1772977639549,1.61491304,1940.9,1940.4,0.0011]
[1772977640355,0.00253886,1940.8,1940.4,0.0011]
[1772977640863,0.00253886,1940.7,1940.4,0.0011]
[1772977641063,0.00253886,1940.8,1940.4,0.0011]
[1772977641357,3.84,1941.4,1940.4,1.4919601]
[1772977641558,1.61491304,1941.4,1940.6,0.0011]
[1772977641858,1.61591304,1941.3,1940.6,0.0011]
[1772977642426,1.61491304,1941.2,1940.6,0.0011]
[1772977645033,1.61491304,1941.0,1940.6,0.0011]
[1772977645666,1.362,1940.9,1940.6,0.0011]
[1772977645872,1.61491304,1940.8,1940.6,0.0011]
[1772977646346,1.362,1940.7,1940.5,0.0011]
[1772977647571,1.361,1941.1,1940.5,0.0011]
[1772977648235,2.90280643,1941.2,1940.5,0.0011]
[1772977648236,1.361,1941.0,1940.5,0.0011]
[1772977648959,2.90281324,1941.2,1940.5,0.0011]
[1772977649167,1.361,1941.1,1940.5,0.0011]
[1772977649378,0.001,1941.3,1940.5,1.4919601]
[1772977649543,0.001,1941.3,1940.6,1.28826136]
[1772977649744,0.001,1941.3,1940.6,2.77912146]
[1772977650488,0.001,1941.3,1940.5,0.0011]
[1772977650489,1.61491304,1941.2,1940.5,0.0011]
[1772977650640,1.98304029,1941.2,1940.0,1.29018313]
[1772977650985,1.61491304,1941.0,1940.1,0.0022]
[1772977651685,1.356,1941.1,1940.2,1.4930601]
[1772977651885,1.356,1941.1,1940.2,1.4908601]
[1772977652242,1.356,1941.1,1940.3,0.0011]
[1772977652486,1.356,1941.1,1940.3,0.0022]
[1772977652712,2.90376073,1941.3,1940.3,0.0022]
[1772977652864,2.64084769,1941.3,1940.4,1.55951902]
[1772977653066,2.64084769,1941.3,1940.5,1.55841902]
[1772977653067,0.001,1941.3,1940.5,1.55841902]
[1772977653393,2.85629792,1941.3,1940.2,1.55731902]
[1772977653596,2.85629792,1941.3,1940.3,2.84577956]
[1772977653816,1.337,1941.2,1940.3,2.84577956]
[1772977654174,1.338,1941.1,1940.4,0.0022]
[1772977654367,1.338,1941.0,1940.4,0.0022]
[1772977654601,1.338,1941.0,1940.5,0.0022]
[1772977654807,1.338,1941.0,1940.4,0.0022]
[1772977655508,1.338,1941.0,1940.4,0.0033]
[1772977655913,5.15118734,1941.5,1940.4,0.0033]
[1772977655914,1.56749613,1942.7,1941.1,0.73409712]
[1772977656073,5.14874193,1942.3,1941.2,1.55731902]
[1772977656273,1.28727732,1942.1,1941.2,1.55731902]
[1772977656740,1.28888284,1942.0,1941.3,0.0011]
[1772977656931,2.62188284,1942.0,1941.3,0.0011]
[1772977657934,2.62188284,1942.0,1941.3,1.28889683]
[1772977658316,2.62188284,1942.0,1941.3,1.28779683]
[1772977659942,4.18937897,1942.0,1941.4,0.0011]
[1772977660166,1.56749613,1941.9,1940.9,1.28805162]
[1772977660363,1.56749613,1941.8,1940.9,1.28805162]
[1772977660849,1.56749613,1941.8,1941.0,0.0011]
[1772977661026,1.56749613,1941.8,1940.9,0.0011]
[1772977661348,1.56749613,1941.8,1940.7,0.0011]
[1772977661519,1.56749613,1941.8,1940.5,1.28832775]
[1772977661723,1.56749613,1941.6,1940.5,2.84674677]
[1772977661919,2.8551603,1941.5,1940.6,0.0011]
[1772977662849,1.56749613,1941.4,1940.7,0.0011]
[1772977663018,1.56749613,1941.4,1940.6,0.0011]
[1772977663654,1.2877788,1942.0,1940.9,1.55731902]
[1772977663816,1.2877788,1942.0,1941.1,1.55731902]
[1772977663817,0.00043886,1942.0,1941.1,1.55731902]
[1772977666373,1.2877715,1942.0,1941.2,1.28786317]
[1772977666586,1.2877715,1942.0,1941.2,2.84518219]
[1772977667452,1.2877715,1942.0,1941.2,1.28786317]
[1772977667653,1.2877715,1942.0,1941.3,1.55731902]
[1772977667973,0.001,1941.9,1941.3,1.55731902]
[1772977668583,0.001,1941.9,1941.4,1.2877305]
[1772977669383,0.001,1941.9,1941.5,1.55731902]
[1772977670486,0.001,1941.9,1941.4,1.2877305]
[1772977670675,0.001,1941.9,1941.3,6.70835686]
[1772977671176,0.001,1941.9,1941.4,1.55731902]
[1772977674020,0.001,1941.9,1941.5,1.55731902]
[1772977676014,0.001,1941.9,1941.6,2.84491687]
[1772977677690,0.001,1941.9,1941.7,1.55731902]
[1772977678219,1.28697475,1942.6,1941.8,1.55731902]
[1772977680015,1.28697475,1942.6,1941.9,1.28739893]
[1772977680220,1.28697475,1942.6,1941.9,2.84471795]
[1772977680421,0.001,1942.5,1941.9,2.84471795]
[1772977680622,1.38479934,1942.5,1941.5,2.84498319]
[1772977680820,1.38479934,1942.5,1941.6,1.55731902]
[1772977681010,1.348,1942.4,1941.6,1.55731902]
[1772977681602,1.349,1942.5,1941.6,1.55731902]
[1772977681930,0.001,1942.5,1941.6,1.55731902]
[1772977682137,0.001,1942.5,1941.8,1.55731902]
[1772977682538,1.349,1942.5,1941.8,1.55731902]
[1772977683010,0.001,1942.5,1941.8,1.55731902]
[1772977683211,0.00153886,1943.0,1942.0,1.53984894]
[1772977683416,0.00153886,1943.0,1942.2,1.53984894]
[1772977684135,0.00153886,1943.0,1942.4,1.53984894]
[1772977685604,1.3757567,1943.0,1942.1,6.69511259]
[1772977685804,0.00153886,1943.0,1942.2,1.54607563]
[1772977686333,0.00153886,1943.0,1942.4,1.54607563]
[1772977687565,1.37946295,1943.0,1942.1,1.54607563]
[1772977688249,2.72746295,1943.0,1942.1,1.54607563]
[1772977688450,1.28673632,1942.9,1942.3,1.54607563]
[1772977688649,0.00153886,1943.0,1942.3,1.54607563]
[1772977690763,0.00153886,1943.0,1942.5,1.54607563]
[1772977691555,1.28633907,1943.5,1942.5,1.54607563]
[1772977691773,1.28620671,1943.7,1942.7,1.54607563]
[1772977692141,1.28620671,1943.7,1942.8,1.54607563]
[1772977692332,2.64990403,1943.7,1942.8,1.54607563]
[1772977693070,2.64990403,1943.7,1942.8,2.83282805]
[1772977693440,2.64990403,1943.7,1942.9,1.54607563]
[1772977693441,1.28620671,1943.7,1942.9,1.54607563]